bitfinex-derivatives/quotes_BNBF0:USTF0_20250617
["timestamp","ask_amount","ask_price","bid_price","bid_amount"]
[1750183415057,1.06949914,642.51,641.64,1.32870126]
[1750183415364,1.16255346,642.64,641.64,1.32870126]
[1750183415365,1.06949914,642.5,641.64,1.32870126]
[1750183415558,1.06949914,642.49,641.64,1.32870126]
[1750183415757,1.06949914,642.48,641.64,1.32870126]
[1750183416058,1.06949914,642.47,641.64,1.32870126]
[1750183416261,1.06949914,642.46,641.64,1.32870126]
[1750183416463,1.06949914,642.45,641.64,1.32870126]
[1750183416664,1.06949914,642.44,641.65,1.254]
[1750183416860,1.06949914,642.43,641.66,0.31169155]
[1750183417058,1.06949914,642.42,641.66,0.31169155]
[1750183417263,1.06949914,642.41,641.66,0.31169155]
[1750183417464,1.16255346,642.63,641.66,0.31169155]
[1750183417765,1.06953239,642.62,641.66,0.31169155]
[1750183417961,1.06953239,642.61,641.66,0.31169155]
[1750183418167,1.06953239,642.6,641.66,0.31169155]
[1750183418361,1.06953239,642.59,641.66,0.31169155]
[1750183418664,1.06953239,642.58,641.66,0.31169155]
[1750183418860,1.06953239,642.57,641.66,0.31169155]
[1750183419061,1.06953239,642.56,641.66,0.31169155]
[1750183419364,1.06953239,642.55,641.66,0.31169155]
[1750183419560,1.06953239,642.54,641.66,0.31169155]
[1750183419760,1.06953239,642.53,641.66,0.31169155]
[1750183419962,1.06953239,642.52,641.66,0.31169155]
[1750183420161,1.06953239,642.51,641.66,0.31169155]
[1750183420362,1.06953239,642.5,641.66,0.31169155]
[1750183420662,1.06953239,642.49,641.66,0.31169155]
[1750183420865,1.06953239,642.48,641.66,0.31169155]
[1750183421165,1.06953239,642.47,641.66,0.31169155]
[1750183421365,1.06953239,642.46,641.66,0.31169155]
[1750183421564,1.06953239,642.45,641.66,0.31169155]
[1750183421769,1.06953239,642.44,641.66,0.31169155]
[1750183421965,1.06953239,642.43,641.66,0.31169155]
[1750183422166,1.06953239,642.42,641.66,0.31169155]
[1750183422462,1.06953239,642.41,641.66,0.31169155]
[1750183422666,1.06953239,642.4,641.66,0.31169155]
[1750183422866,1.06953239,642.39,641.66,0.31169155]
[1750183423164,1.06953239,642.38,641.66,0.31169155]
[1750183423466,1.06953239,642.37,641.66,0.31169155]
[1750183423663,1.06953239,642.36,641.66,0.31169155]
[1750183423866,1.06953239,642.35,641.66,0.31169155]
[1750183424166,1.06953239,642.34,641.66,0.31169155]
[1750183424367,1.06953239,642.33,641.66,0.31169155]
[1750183424566,1.06953239,642.32,641.66,0.31169155]
[1750183424766,1.06953239,642.31,641.66,0.31169155]
[1750183424968,1.06953239,642.3,641.66,0.31169155]
[1750183425164,1.06953239,642.29,641.66,0.31169155]
[1750183425365,1.16255346,642.5,641.66,0.31169155]
[1750183425669,1.06985964,642.49,641.66,0.31169155]
[1750183425870,1.06985964,642.48,641.66,0.31169155]
[1750183426069,1.06985964,642.47,641.66,0.31169155]
[1750183426369,1.06985964,642.46,641.66,0.31169155]
[1750183426569,1.06985964,642.45,641.66,0.31169155]
[1750183426770,1.06985964,642.44,641.66,0.31169155]
[1750183426968,1.06985964,642.43,641.66,0.31169155]
[1750183427168,1.06985964,642.42,641.66,0.31169155]
[1750183427366,1.06985964,642.41,641.66,0.31169155]
[1750183427670,1.06985964,642.4,641.66,0.31169155]
[1750183427869,1.06985964,642.39,641.66,0.31169155]
[1750183428064,1.06985964,642.38,641.66,0.31169155]
[1750183428364,1.06985964,642.37,641.66,0.31169155]
[1750183428568,1.06985964,642.36,641.66,0.31169155]
[1750183428764,1.06985964,642.35,641.66,0.31169155]
[1750183428967,1.06985964,642.34,641.66,0.31169155]
[1750183429267,1.06985964,642.33,641.66,0.31169155]
[1750183429466,1.06985964,642.32,641.66,0.31169155]
[1750183429769,1.16255346,642.49,641.66,0.31169155]
[1750183429770,1.06985964,642.31,641.66,0.31169155]
[1750183429969,1.06985964,642.3,641.66,0.31169155]
[1750183430167,1.16255346,642.51,641.66,0.31169155]
[1750183430369,2.23252128,642.5,641.66,0.31169155]
[1750183430569,1.06996782,642.49,641.66,0.31169155]
[1750183430770,1.06996782,642.48,641.66,0.31169155]
[1750183430967,1.06996782,642.47,641.66,0.31169155]
[1750183431271,1.06996782,642.46,641.66,0.31169155]
[1750183431470,1.16255346,642.49,641.66,0.31169155]
[1750183431471,1.06996782,642.45,641.66,0.31169155]
[1750183431671,1.06996782,642.44,641.66,0.31169155]
[1750183431871,1.06996782,642.43,641.66,0.31169155]
[1750183432071,1.06996782,642.42,641.66,0.31169155]
[1750183432269,1.06996782,642.41,641.66,0.31169155]
[1750183432470,1.06996782,642.4,641.66,0.31169155]
[1750183432774,1.06996782,642.39,641.66,0.31169155]
[1750183432975,1.06996782,642.38,641.66,0.31169155]
[1750183433273,1.06996782,642.37,641.66,0.31169155]
[1750183433474,1.06996782,642.36,641.66,0.31169155]
[1750183433673,1.06996782,642.35,641.66,0.31169155]
[1750183433872,1.06996782,642.34,641.66,0.31169155]
[1750183434070,1.06996782,642.33,641.66,0.31169155]
[1750183434270,1.06996782,642.32,641.66,0.31169155]
[1750183434571,1.06996782,642.31,641.66,0.31169155]
[1750183434776,1.06996782,642.3,641.66,0.31169155]
[1750183434971,1.06996782,642.29,641.66,0.31169155]
[1750183435171,1.06996782,642.28,641.66,0.31169155]
[1750183435375,1.06996782,642.27,641.66,0.31169155]
[1750183435576,1.16255346,642.43,641.66,0.31169155]
[1750183435577,1.06996782,642.26,641.66,0.31169155]
[1750183435774,1.06996782,642.25,641.66,0.31169155]
[1750183435972,1.06996782,642.24,641.66,0.31169155]
[1750183436272,1.16255346,642.47,641.68,0.27099954]
[1750183436475,1.06901378,642.46,641.68,0.27099954]
[1750183436676,1.06901378,642.45,641.68,0.27099954]
[1750183436879,1.06901378,642.44,641.68,0.27099954]
[1750183437076,1.06901378,642.43,641.68,0.27099954]
[1750183437377,1.06901378,642.42,641.68,0.27099954]
[1750183437587,1.06901378,642.41,641.68,0.27099954]
[1750183437779,1.06901378,642.4,641.68,0.27099954]
[1750183438079,1.06901378,642.39,641.68,0.27099954]
[1750183438282,1.06901378,642.38,641.68,0.27099954]
[1750183438476,1.06901378,642.37,641.68,0.27099954]
[1750183438675,1.06901378,642.36,641.68,0.27099954]
[1750183438875,1.06901378,642.35,641.68,0.27099954]
[1750183439181,1.06901378,642.34,641.68,0.27099954]
[1750183439377,1.06901378,642.33,641.68,0.27099954]
[1750183439576,1.06901378,642.32,641.68,0.27099954]
[1750183439781,1.06901378,642.31,641.68,0.27099954]
[1750183440081,1.06894906,642.3,641.68,0.27099954]
[1750183440381,1.06894906,642.29,641.69,1.053]
[1750183440581,1.16255346,642.51,641.69,1.053]
[1750183440781,1.06894906,642.5,641.69,1.053]
[1750183440981,2.23150252,642.49,641.69,1.053]
[1750183441183,1.06894906,642.48,641.69,1.053]
[1750183441377,1.54933072,642.63,641.69,1.053]
[1750183441378,1.06894906,642.47,641.69,1.053]
[1750183441583,1.06894906,642.46,641.69,1.053]
[1750183441780,1.06894906,642.45,641.69,1.053]
[1750183442082,1.06894906,642.44,641.69,1.053]
[1750183442379,1.06894906,642.43,641.69,1.053]
[1750183442583,1.06894906,642.42,641.69,1.053]
[1750183442780,1.06894906,642.41,641.69,1.053]
[1750183443078,1.06894906,642.4,641.69,1.053]
[1750183443278,1.06894906,642.39,641.69,1.053]
[1750183443581,1.06894906,642.38,641.69,1.053]
[1750183443776,1.06894906,642.37,641.69,1.053]
[1750183443979,1.06894906,642.36,641.69,1.053]
[1750183444177,1.06894906,642.35,641.69,1.053]
[1750183444481,1.06894906,642.34,641.69,1.053]
[1750183444782,1.06894906,642.33,641.69,1.053]
[1750183444981,1.06894906,642.32,641.69,1.053]
[1750183445281,1.06894906,642.31,641.69,1.053]
[1750183445481,1.06894906,642.3,641.69,1.053]
[1750183445781,1.06894906,642.29,641.69,1.053]
[1750183445975,1.16255346,642.49,641.69,1.053]
[1750183446176,1.06897179,642.48,641.69,1.053]
[1750183446375,1.06897179,642.47,641.69,1.053]
[1750183446577,1.06897179,642.46,641.69,1.053]
[1750183446778,1.06897179,642.45,641.69,1.053]
[1750183446981,1.06897179,642.44,641.69,1.053]
[1750183447178,1.06897179,642.43,641.69,1.053]
[1750183447382,1.06897179,642.42,641.69,1.053]
[1750183447584,1.06897179,642.41,641.69,1.053]
[1750183447783,1.06897179,642.4,641.69,1.053]
[1750183448083,1.06897179,642.39,641.69,1.053]
[1750183448281,1.06897179,642.38,641.69,1.053]
[1750183448480,1.06897179,642.37,641.69,1.053]
[1750183448682,1.06897179,642.36,641.69,1.053]
[1750183448879,1.06897179,642.35,641.69,1.053]
[1750183449185,1.06897179,642.34,641.69,1.053]
[1750183449479,1.06897179,642.33,641.69,1.053]
[1750183449681,1.06897179,642.32,641.69,1.053]
[1750183449882,1.06897179,642.31,641.69,1.053]
[1750183450082,1.16255346,642.49,641.69,1.053]
[1750183450083,1.06897179,642.3,641.69,1.053]
[1750183450283,1.16255346,642.49,641.69,1.053]
[1750183450284,1.16255346,642.49,641.7,1.338]
[1750183450484,1.06897986,642.48,641.7,1.338]
[1750183450684,1.06897986,642.47,641.7,1.338]
[1750183450883,1.06897986,642.46,641.7,1.338]
[1750183451081,1.06897986,642.45,641.7,1.338]
[1750183451284,1.06897986,642.44,641.7,1.338]
[1750183451483,1.06897986,642.43,641.7,1.338]
[1750183451684,1.06897986,642.42,641.7,1.338]
[1750183451984,1.06897986,642.41,641.7,1.338]
[1750183452182,1.06897986,642.4,641.7,1.338]
[1750183452381,1.06897986,642.39,641.7,1.338]
[1750183452583,1.06897986,642.38,641.7,1.338]
[1750183452886,1.06897986,642.37,641.7,1.338]
[1750183453084,1.06897986,642.36,641.7,1.338]
[1750183453283,1.06897986,642.35,641.7,1.338]
[1750183453483,1.06897986,642.34,641.7,1.338]
[1750183453684,1.06897986,642.33,641.7,1.338]
[1750183453883,1.06897986,642.32,641.7,1.338]
[1750183454185,1.06897986,642.31,641.7,1.338]
[1750183454487,1.06897986,642.3,641.7,1.338]
[1750183454688,1.06897986,642.29,641.7,1.338]
[1750183454985,1.16255346,642.5,641.7,1.338]
[1750183455283,1.06905527,642.49,641.7,1.338]
[1750183455484,1.06905527,642.48,641.7,1.338]
[1750183455683,1.06905527,642.47,641.7,1.338]
[1750183455987,1.06905527,642.46,641.7,1.338]
[1750183456184,1.06905527,642.45,641.7,1.338]
[1750183456383,1.06905527,642.44,641.7,1.338]
[1750183456586,1.16255346,642.55,641.7,1.338]
[1750183456587,1.06905527,642.43,641.7,1.338]
[1750183456787,1.06905527,642.42,641.7,1.338]
[1750183457084,1.06905527,642.41,641.7,1.338]
[1750183457283,1.06905527,642.4,641.7,1.338]
[1750183457485,1.06905527,642.39,641.7,1.338]
[1750183457784,1.06905527,642.38,641.7,1.338]
[1750183457988,1.06905527,642.37,641.7,1.338]
[1750183458184,1.06905527,642.36,641.7,1.338]
[1750183458384,1.16255346,642.55,641.7,1.338]
[1750183458385,1.06905527,642.35,641.7,1.338]
[1750183458585,1.06905527,642.34,641.7,1.338]
[1750183458789,1.06905527,642.33,641.7,1.338]
[1750183458989,1.16255346,642.55,641.7,1.338]
[1750183459286,1.06944559,642.54,641.7,1.338]
[1750183459488,1.06944559,642.53,641.7,1.338]
[1750183459685,1.06944559,642.52,641.7,1.338]
[1750183459886,1.06944559,642.51,641.7,1.338]
[1750183460087,1.06944559,642.5,641.7,1.338]
[1750183460288,1.06944559,642.49,641.7,1.338]
[1750183460491,1.06944559,642.48,641.7,1.338]
[1750183460691,1.06944559,642.47,641.7,1.338]
[1750183460888,1.06944559,642.46,641.71,1.295]
[1750183461088,1.06944559,642.45,641.71,1.295]
[1750183461289,1.06944559,642.44,641.71,1.295]
[1750183461489,1.06944559,642.43,641.71,1.295]
[1750183461694,1.06944559,642.42,641.72,1.224]
[1750183461893,1.06944559,642.41,641.72,1.224]
[1750183462090,1.16255346,642.55,641.72,1.224]
[1750183462091,1.06944559,642.4,641.72,1.224]
[1750183462292,1.06944559,642.39,641.72,1.224]
[1750183462492,1.06944559,642.38,641.72,1.224]
[1750183462691,1.06944559,642.37,641.72,1.224]
[1750183462897,1.06944559,642.36,641.72,1.224]
[1750183463097,1.06944559,642.35,641.72,1.224]
[1750183463397,1.06944559,642.34,641.72,1.224]
[1750183463592,1.16255346,642.54,641.72,1.224]
[1750183463593,1.06944559,642.33,641.72,1.224]
[1750183463792,1.16255346,642.55,641.72,1.224]
[1750183463996,1.0700651,642.54,641.72,1.224]
[1750183464194,1.0700651,642.53,641.72,1.224]
[1750183464397,1.0700651,642.52,641.72,1.224]
[1750183464597,1.0700651,642.51,641.72,1.224]
[1750183464797,1.0700651,642.5,641.72,1.224]
[1750183464995,1.0700651,642.49,641.72,1.224]
[1750183465199,1.0700651,642.48,641.72,1.224]
[1750183465397,1.0700651,642.47,641.72,1.224]
[1750183465597,1.0700651,642.46,641.72,1.224]
[1750183465795,1.0700651,642.45,641.72,1.224]
[1750183465997,1.0700651,642.44,641.72,1.224]
[1750183466196,1.0700651,642.43,641.72,1.224]
[1750183466397,1.0700651,642.42,641.72,1.224]
[1750183466697,1.0700651,642.41,641.72,1.224]
[1750183466895,1.0700651,642.4,641.72,1.224]
[1750183467197,1.0700651,642.39,641.72,1.224]
[1750183467500,1.16255346,642.66,641.72,1.224]
[1750183467800,1.0701128,642.65,641.72,1.224]
[1750183467996,1.0701128,642.64,641.72,1.224]
[1750183468201,1.0701128,642.63,641.72,1.224]
[1750183468500,1.0701128,642.62,641.72,1.224]
[1750183468700,1.0701128,642.61,641.72,1.224]
[1750183468901,1.0701128,642.6,641.72,1.5356624]
[1750183469100,1.0701128,642.59,641.72,1.5356624]
[1750183469400,1.0701128,642.58,641.73,0.31165755]
[1750183469600,1.4334528,642.75,641.73,0.31165755]
[1750183469601,1.0701128,642.57,641.73,0.31165755]
[1750183469900,1.0701128,642.56,641.73,0.31165755]
[1750183470098,1.0701128,642.55,641.73,0.31165755]
[1750183470297,1.0701128,642.54,641.73,0.31165755]
[1750183470500,1.0701128,642.53,641.73,0.31165755]
[1750183470701,1.0701128,642.52,641.73,0.31165755]
[1750183470900,1.0701128,642.51,641.73,0.31165755]
[1750183471097,1.0701128,642.5,641.73,0.31165755]
[1750183471396,1.0701128,642.49,641.73,0.31165755]
[1750183471598,1.0701128,642.48,641.73,0.31165755]
[1750183471800,1.0701128,642.47,641.73,0.31165755]
[1750183472000,1.0701128,642.46,641.73,0.31165755]
[1750183472200,1.0701128,642.45,641.73,0.31165755]
[1750183472497,1.4334528,642.75,641.73,0.31165755]
[1750183472498,0.27089934,642.75,641.73,0.31165755]
[1750183472702,1.07004414,642.74,641.73,0.31165755]
[1750183472902,1.07004414,642.73,641.73,0.31165755]
[1750183473198,1.07004414,642.72,641.73,0.31165755]
[1750183473402,1.07004414,642.71,641.73,0.31165755]
[1750183473599,1.07004414,642.7,641.73,0.31165755]
[1750183473804,1.07004414,642.69,641.73,0.31165755]
[1750183474004,1.07004414,642.68,641.73,0.31165755]
[1750183474303,1.07004414,642.67,641.73,0.31165755]
[1750183474600,1.07004414,642.66,641.73,0.31165755]
[1750183474799,1.07004414,642.65,641.73,0.31165755]
[1750183475003,1.07004414,642.64,641.73,0.31165755]
[1750183475199,1.07004414,642.63,641.73,0.31165755]
[1750183475397,1.07004414,642.62,641.73,0.31165755]
[1750183475600,1.07004414,642.61,641.73,0.31165755]
[1750183475803,1.07004414,642.6,641.73,0.31165755]
[1750183476005,1.07004414,642.59,641.73,0.31165755]
[1750183476303,1.07004414,642.58,641.73,0.31165755]
[1750183476504,1.07004414,642.57,641.73,0.31165755]
[1750183476704,1.07004414,642.56,641.73,0.31165755]
[1750183476905,1.07004414,642.55,641.73,0.31165755]
[1750183477205,1.07004414,642.54,641.73,0.31165755]
[1750183477404,1.16255346,642.71,641.73,0.31165755]
[1750183477405,1.07004414,642.53,641.73,0.31165755]
[1750183477602,1.07004414,642.52,641.73,0.31165755]
[1750183477802,1.07004414,642.51,641.74,1.325]
[1750183478007,1.07004414,642.5,641.74,1.325]
[1750183478206,1.07004414,642.49,641.74,1.325]
[1750183478402,1.07004414,642.48,641.74,1.325]
[1750183478602,1.07004414,642.47,641.74,1.325]
[1750183478902,1.07004414,642.46,641.74,1.325]
[1750183479105,1.07004414,642.45,641.74,1.325]
[1750183479308,1.16255346,642.7,641.74,1.325]
[1750183479508,1.06923629,642.69,641.74,1.325]
[1750183479803,1.06923629,642.68,641.74,1.325]
[1750183480005,1.06923629,642.67,641.74,1.325]
[1750183480202,1.06923629,642.66,641.74,1.325]
[1750183480402,1.06923629,642.65,641.74,1.325]
[1750183480607,1.06923629,642.64,641.74,1.325]
[1750183480808,1.06923629,642.63,641.74,1.325]
[1750183481008,1.06923629,642.62,641.74,1.325]
[1750183481208,1.06923629,642.61,641.74,1.325]
[1750183481504,1.06923629,642.6,641.74,1.325]
[1750183481709,1.06923629,642.59,641.74,1.325]
[1750183482009,1.06923629,642.58,641.74,1.325]
[1750183482207,1.06923629,642.57,641.74,1.325]
[1750183482404,1.06923629,642.56,641.74,1.325]
[1750183482609,1.06923629,642.55,641.75,0.31164783]
[1750183482810,1.06923629,642.54,641.75,0.31164783]
[1750183483010,1.06923629,642.53,641.75,0.31164783]
[1750183483209,1.06923629,642.52,641.75,0.31164783]
[1750183483406,1.06923629,642.51,641.75,0.31164783]
[1750183483610,1.06923629,642.5,641.75,0.31164783]
[1750183483806,1.06923629,642.49,641.75,0.31164783]
[1750183484110,1.06923629,642.48,641.75,0.31164783]
[1750183484411,1.16255346,642.73,641.75,0.31164783]
[1750183484610,1.06890288,642.72,641.75,0.31164783]
[1750183484907,1.06890288,642.71,641.75,0.31164783]
[1750183485107,1.06890288,642.7,641.75,0.31164783]
[1750183485311,1.06890288,642.69,641.75,0.31164783]
[1750183485610,1.06890288,642.68,641.75,0.31164783]
[1750183485807,1.06890288,642.67,641.75,0.31164783]
[1750183486012,1.06890288,642.66,641.75,0.31164783]
[1750183486212,1.06890288,642.65,641.75,0.31164783]
[1750183486514,1.06890288,642.64,641.75,0.31164783]
[1750183486810,1.06890288,642.63,641.75,0.31164783]
[1750183487009,1.06890288,642.62,641.75,0.31164783]
[1750183487315,1.06890288,642.61,641.75,0.31164783]
[1750183487611,1.06890288,642.6,641.76,1.481]
[1750183487909,1.06890288,642.59,641.77,0.31163812]
[1750183488111,1.43344015,642.84,641.77,0.31163812]
[1750183488112,0.27088669,642.84,641.77,0.31163812]
[1750183488314,1.06852994,642.83,641.78,1.334]
[1750183488511,1.06852994,642.82,641.79,0.31162841]
[1750183488715,1.06852994,642.81,641.79,0.31162841]
[1750183488912,1.06852994,642.8,641.79,0.31162841]
[1750183489114,1.06852994,642.79,641.79,0.31162841]
[1750183489411,1.06852994,642.78,641.79,0.31162841]
[1750183489611,1.06852994,642.77,641.79,0.31162841]
[1750183489815,1.06852994,642.76,641.79,0.31162841]
[1750183490016,1.06852994,642.75,641.79,0.31162841]
[1750183490213,1.06852994,642.74,641.79,0.31162841]
[1750183490513,1.06852994,642.73,641.79,0.31162841]
[1750183490718,1.06852994,642.72,641.79,0.31162841]
[1750183490917,1.06852994,642.71,641.79,0.31162841]
[1750183491117,1.06852994,642.7,641.79,0.31162841]
[1750183491317,1.06852994,642.69,641.79,0.31162841]
[1750183491518,1.06852994,642.68,641.79,0.31162841]
[1750183491722,1.06852994,642.67,641.79,0.31162841]
[1750183491918,1.06852994,642.66,641.79,0.31162841]
[1750183492218,1.06852994,642.65,641.79,0.31162841]
[1750183492415,0.27085822,642.92,641.79,0.31162841]
[1750183492714,1.06735329,642.91,641.79,0.31162841]
[1750183492913,1.06735329,642.9,641.79,0.31162841]
[1750183493114,1.06735329,642.89,641.79,0.31162841]
[1750183493414,1.06735329,642.88,641.79,0.31162841]
[1750183493614,1.06735329,642.87,641.79,0.31162841]
[1750183493815,1.06735329,642.86,641.79,0.31162841]
[1750183494013,1.06735329,642.85,641.79,0.31162841]
[1750183494217,1.06735329,642.84,641.79,0.31162841]
[1750183494413,1.06735329,642.83,641.79,0.31162841]
[1750183494620,1.06735329,642.82,641.79,0.31162841]
[1750183494919,1.06735329,642.81,641.79,0.31162841]
[1750183495118,1.06735329,642.8,641.79,0.31162841]
[1750183495320,1.06735329,642.79,641.79,0.31162841]
[1750183495616,1.06735329,642.78,641.79,0.31162841]
[1750183495820,1.06735329,642.77,641.79,0.31162841]
[1750183496119,1.06735329,642.76,641.79,0.31162841]
[1750183496318,1.06735329,642.75,641.79,0.31162841]
[1750183496517,1.06735329,642.74,641.79,0.31162841]
[1750183496723,1.06735329,642.73,641.79,0.31162841]
[1750183496922,1.06735329,642.72,641.79,0.31162841]
[1750183497119,1.06735329,642.71,641.79,0.31162841]
[1750183497323,1.16255346,642.95,641.79,0.31162841]
[1750183497523,1.06744698,642.94,641.79,0.31162841]
[1750183497820,1.06744698,642.93,641.79,0.31162841]
[1750183498023,1.06744698,642.92,641.79,0.31162841]
[1750183498223,1.06744698,642.91,641.79,0.31162841]
[1750183498423,1.06744698,642.9,641.79,0.31162841]
[1750183498623,1.06744698,642.89,641.79,0.31162841]
[1750183498923,1.06744698,642.88,641.79,0.31162841]
[1750183499124,1.06744698,642.87,641.79,0.31162841]
[1750183499323,1.06744698,642.86,641.79,0.31162841]
[1750183499623,1.06744698,642.85,641.79,0.31162841]
[1750183499821,1.06744698,642.84,641.79,0.31162841]
[1750183500021,1.06744698,642.83,641.79,0.31162841]
[1750183500220,1.06744698,642.82,641.79,0.31162841]
[1750183500426,1.06744698,642.81,641.79,0.31162841]
[1750183500625,1.06744698,642.8,641.79,0.31162841]
[1750183500828,1.06744698,642.79,641.79,0.31162841]
[1750183501128,1.06744698,642.78,641.79,0.31162841]
[1750183501329,1.06744698,642.77,641.79,0.31162841]
[1750183501527,1.06744698,642.76,641.79,0.31162841]
[1750183501732,1.06744698,642.75,641.79,0.31162841]
[1750183502029,1.06744698,642.74,641.79,0.31162841]
[1750183502329,1.06744698,642.73,641.79,0.31162841]
[1750183502530,1.16255346,642.95,641.79,0.31162841]
[1750183502726,1.06687249,642.94,641.79,0.31162841]
[1750183502930,1.06687249,642.93,641.79,0.31162841]
[1750183503131,1.06687249,642.92,641.79,0.31162841]
[1750183503331,1.06687249,642.91,641.79,0.31162841]
[1750183503531,1.06687249,642.9,641.79,0.31162841]
[1750183503831,1.06687249,642.89,641.79,0.31162841]
[1750183504029,1.06687249,642.88,641.79,0.31162841]
[1750183504225,1.06687249,642.87,641.79,0.31162841]
[1750183504431,1.06687249,642.86,641.8,1.457]
[1750183504628,1.06687249,642.85,641.82,0.31161384]
[1750183504826,1.06687249,642.84,641.82,0.31161384]
[1750183505026,1.06687249,642.83,641.82,0.31161384]
[1750183505225,1.06687249,642.82,641.82,0.31161384]
[1750183505434,1.06687249,642.81,641.82,0.31161384]
[1750183505629,1.06687249,642.8,641.82,0.31161384]
[1750183505931,1.06687249,642.79,641.82,0.31161384]
[1750183506132,1.06687249,642.78,641.82,0.31161384]
[1750183506429,1.16255346,643.08,641.82,0.31161384]
[1750183506631,1.06628948,643.07,641.82,0.31161384]
[1750183506832,1.06628948,643.06,641.82,0.31161384]
[1750183507031,1.06628948,643.05,641.82,0.31161384]
[1750183507331,1.06628948,643.04,641.82,0.31161384]
[1750183507531,1.06628948,643.03,641.82,0.31161384]
[1750183507825,1.06628948,643.02,641.82,0.31161384]
[1750183508028,1.06628948,643.01,641.82,0.31161384]
[1750183508334,1.06628948,643.0,641.82,0.31161384]
[1750183508629,1.06628948,642.99,641.83,1.231]
[1750183508928,1.06628948,642.98,641.85,0.31159928]
[1750183509131,1.06628948,642.97,641.85,0.31159928]
[1750183509332,1.06628948,642.96,641.85,0.31159928]
[1750183509530,1.06628948,642.95,641.85,0.31159928]
[1750183509832,1.06628948,642.94,641.85,0.31159928]
[1750183510029,1.06628948,642.93,641.85,0.31159928]
[1750183510228,1.06628948,642.92,641.86,1.442]
[1750183510426,1.06628948,642.91,641.88,0.31158471]
[1750183510631,1.06628948,642.9,641.88,0.31158471]
[1750183510832,1.06628948,642.89,641.89,1.415]
[1750183511028,1.16255346,643.15,641.91,0.31157015]
[1750183511328,1.06510208,643.14,641.91,0.31157015]
[1750183511629,1.06510208,643.13,641.91,0.31157015]
[1750183511829,1.06510208,643.12,641.91,0.31157015]
[1750183512132,1.06510208,643.11,641.91,0.31157015]
[1750183512332,1.06510208,643.1,641.91,0.31157015]
[1750183512529,1.06510208,643.09,641.91,0.31157015]
[1750183512730,1.06510208,643.08,641.91,0.31157015]
[1750183512929,1.06510208,643.07,641.91,0.31157015]
[1750183513133,1.06510208,643.06,641.91,0.31157015]
[1750183513329,1.06510208,643.05,641.91,0.31157015]
[1750183513633,1.06510208,643.04,641.91,0.31157015]
[1750183513931,1.06510208,643.03,641.91,0.31157015]
[1750183514229,1.06510208,643.02,641.91,0.31157015]
[1750183514434,1.06510208,643.01,641.91,0.31157015]
[1750183514735,1.06510208,643.0,641.91,0.31157015]
[1750183514931,1.06510208,642.99,641.91,0.31157015]
[1750183515130,1.06510208,642.98,641.91,0.31157015]
[1750183515430,1.06510208,642.97,641.91,0.31157015]
[1750183515630,1.06510208,642.96,641.91,0.31157015]
[1750183515835,1.06510208,642.95,641.91,0.31157015]
[1750183516030,1.06510208,642.94,641.91,0.31157015]
[1750183516334,1.06510208,642.93,641.91,0.31157015]
[1750183516532,1.16255346,643.17,641.91,0.31157015]
[1750183516831,1.06437879,643.16,641.91,0.31157015]
[1750183517032,1.06437879,643.15,641.91,0.31157015]
[1750183517232,1.06437879,643.14,641.91,0.31157015]
[1750183517436,1.06437879,643.13,641.91,0.31157015]
[1750183517636,1.06437879,643.12,641.91,0.31157015]
[1750183517832,1.06437879,643.11,641.91,0.31157015]
[1750183518038,1.06437879,643.1,641.91,0.31157015]
[1750183518338,0.27073601,643.22,641.91,0.31157015]
[1750183518534,1.15569581,643.16,641.91,0.31157015]
[1750183518732,1.06443141,643.15,641.91,0.31157015]
[1750183519037,1.06443141,643.14,641.91,0.31157015]
[1750183519334,1.06443141,643.13,641.91,0.31157015]
[1750183519537,1.06443141,643.12,641.91,0.31157015]
[1750183519732,1.06443141,643.11,641.91,0.31157015]
[1750183519941,1.06443141,643.1,641.91,0.31157015]
[1750183520233,1.06443141,643.09,641.91,0.31157015]
[1750183520534,1.06443141,643.08,641.91,0.31157015]
[1750183520737,1.06443141,643.07,641.91,0.31157015]
[1750183520937,1.06443141,643.06,641.91,0.31157015]
[1750183521134,1.06443141,643.05,641.91,0.31157015]
[1750183521437,1.06443141,643.04,641.91,0.31157015]
[1750183521633,1.06443141,643.03,641.91,0.31157015]
[1750183521839,1.06443141,643.02,641.91,0.31157015]
[1750183522039,1.06443141,643.01,641.91,0.31157015]
[1750183522339,1.0646006,643.0,641.91,0.31157015]
[1750183522538,1.0646006,642.99,641.91,0.31157015]
[1750183522738,1.0646006,642.98,641.91,0.31157015]
[1750183523038,1.0646006,642.97,641.91,0.31157015]
[1750183523339,1.0646006,642.96,641.91,0.31157015]
[1750183523539,1.0646006,642.95,641.92,1.148]
[1750183523736,1.0646006,642.94,641.94,0.31155559]